Cogmind - Beta 10.2 @@@ ROGUE MODE // 2021.04.11 @ 20:49:55 Player: piroko Result: Destroyed by D-53 Grenadier with Mini Grenade Launcher Performance ------------- Evolutions (0) 0 Regions Visited (2) 400 Robots Destroyed (8) 40 Value Destroyed (103) 103 Prototype IDs (0) 0 Alien Tech Used (0) 0 Bonus (0) 0 TOTAL SCORE: 543 Bonus ------- None Cogmind --------- Core Integrity 0/250 Matter 300/300 Energy 90/100 System Corruption 0% Temperature Cool (0) Movement Core (50) Location -10/Mines Parts ------- > --- POWER (1) -------- (None) > --- PROPULSION (2) --- (None) > --- UTILITY (2) ------ (None) > --- WEAPON (2) ------- (None) > --- INVENTORY (4) ---- Hover Unit Peak State ------------ > --- POWER ------------ Light Ion Engine > --- PROPULSION ------- Aluminum Leg Aluminum Leg > --- UTILITY ---------- Heat Sink > --- WEAPON ----------- EM Pulse Gun Assault Rifle > --- INVENTORY -------- Ion Engine Aluminum Leg [Rating: 6] Favorites ----------- Power Ion Engine Engine Ion Engine Propulsion Aluminum Leg Leg Aluminum Leg Flight Unit Flight Unit Utility Heat Sink Device Heat Sink Weapon Assault Rifle Energy Gun EM Pulse Gun Ballistic Gun Assault Rifle Special Weapon Mining Laser Build | -11 -10 -10 ------- Run | Scr Mat Min Slots Evolved . | . . . Power . | . . . Propulsion . | . . . Utility . | . . . Weapon . | . . . Parts Attached 18 | 6 11 1 Power 4 | 1 2 1 Engine 4 | 1 2 1 Core . | . . . Reactor . | . . . Propulsion 8 | 2 6 . Treads . | . . . Leg 4 | 2 2 . Wheel . | . . . Hover . | . . . Flight 4 | . 4 . Utility 1 | 1 . . Device 1 | 1 . . Storage . | . . . Processor . | . . . Hackware . | . . . Protection . | . . . Artifact . | . . . Weapon 5 | 2 3 . Energy Gun 1 | 1 . . Energy Cannon . | . . . Ballistic Gun 1 | 1 . . Ballistic Cannon . | . . . Launcher . | . . . Special Weapon 3 | . 3 . Impact Weapon . | . . . Slashing Weapon . | . . . Piercing Weapon . | . . . Special Melee Weapon . | . . . Unidentified Prototypes . | . . . Parts Lost 7 | . 1 6 Power 2 | . . 2 Propulsion 2 | . . 2 Utility 1 | . . 1 Weapon 2 | . 1 1 Highest Loss Streak 5 | . 1 5 Average Slot Usage (%) 66 | . 71 58 Engine 14 | . 14 14 Leg 13 | . 22 . Flight 13 | . 3 28 Device 14 | . 14 14 Energy Gun 2 | . 4 . Ballistic Gun 4 | . 7 . Special Weapon 3 | . 4 1 Naked Turns 2 | . . 2 Heaviest Build 8 | 8 8 7 Greatest Support 20 | 20 20 8 Greatest Overweight (x) 1 | . 1 . Average Overweight (x) . | . . . Largest Inventory Capacity 4 | 4 4 4 Average Capacity 4 | 4 4 4 Most Carried 4 | 4 4 3 Average Carried 1 | . 2 1 Final Capacity 4 | 4 4 4 Final Carried 4 | 4 1 1 Class Distribution -------------------- 65% | Mutant 34% | Scavenger-Mutant Dominant Class ---------------- Mutant | -10/Materials Scavenger-Mutant | -10/Mines Resources | -11 -10 -10 ----------- Run | Scr Mat Min Matter Collected 417 | 275 87 55 Remotely . | . . . Salvage Created 226 | 62 164 . Parts 11 | 5 6 . Haulers Intercepted . | . . . Recyclers Shooed . | . . . Parts Field Recycled . | . . . Retrieved Matter . | . . . Parts Self-Destructed . | . . . Prevented . | . . . Kills | -11 -10 -10 ------- Run | Scr Mat Min Combat Hostiles Destroyed 5 | 1 4 . Guns 4 | 1 3 . Cannons 1 | . 1 . Classes Destroyed 5 | 2 3 . Tunneler 1 | 1 . . Recycler 1 | . 1 . Watcher 1 | . 1 . Swarmer 4 | . 4 . Grunt 1 | 1 . . Best Kill Streak 5 | 2 5 . Combat Bots Only 3 | 1 3 . Max Kills in Single Turn 1 | 1 1 . Gunslinging . | . . . Exploded . | . . . Melee . | . . . Uniques/NPCs Destroyed . | . . . Combat | -11 -10 -10 -------- Run | Scr Mat Min Damage Taken 635 | 43 347 245 Core 253 | 32 85 136 Absorbed by Shields . | . . . Core Remaining (%) 87 | 87 . . Volleys Fired 27 | 5 22 . Largest 2 | 2 2 . Hottest 100 | 60 100 . Shots Fired 40 | 10 30 . Gun 32 | 10 22 . Cannon . | . . . Launcher . | . . . Special 8 | . 8 . Kinetic 19 | 5 14 . Thermal 8 | . 8 . Explosive . | . . . Electromagnetic 13 | 5 8 . Robot Hit Streak 7 | 2 7 . Robot Miss Streak 4 | 2 4 . Penetration Max . | . . . Secondary Targets . | . . . Shots Hit Robots 23 | 5 18 . Core Hits 10 | 3 7 . Critical Hits . | . . . Critical Kills . | . . . Critical Parts Destroyed . | . . . Melee Attacks . | . . . Impact . | . . . Slashing . | . . . Piercing . | . . . Sneak Attacks . | . . . Combat Hostiles . | . . . Follow-up Attacks . | . . . Damage Inflicted 383 | 78 305 . Guns 335 | 78 257 . Cannons . | . . . Explosions . | . . . Melee . | . . . Ramming . | . . . Kinetic 199 | 41 158 . Thermal 48 | . 48 . Explosive . | . . . Electromagnetic 136 | 37 99 . Impact . | . . . Slashing . | . . . Piercing . | . . . Highest Corruption . | . . . Average Corruption . | . . . Corruption Purged . | . . . Overload Shots . | . . . Overflow Damage . | . . . Projectiles . | . . . Explosions . | . . . Melee . | . . . Knockbacks . | . . . Impact . | . . . Kinetic . | . . . Secondary . | . . . Self-Inflicted Damage . | . . . Shots . | . . . Rammed . | . . . Targets Rammed . | . . . Kicked . | . . . Crushed . | . . . Highest Temperature 24 | 24 . . Average Temperature 15 | 15 . . Received Heat Transfer 24 | 24 . . Siege Activations . | . . . Robots Corrupted . | . . . Combat Hostiles . | . . . Parts Fried 1 | . 1 . Impact Corruptions . | . . . Robots Melted . | . . . Combat Hostiles . | . . . Parts Melted . | . . . Heat Transferred 100 | . 100 . Parts Sabotaged . | . . . Parts Stolen . | . . . Parts Stripped . | . . . Power Chain Reactions . | . . . Missiles Intercepted . | . . . Alert | -11 -10 -10 ------- Run | Scr Mat Min Peak Influence 153 | 25 153 124 Initial 59 | . 16 59 Average 69 | 6 80 102 Maximum Alert Level . | . . . Low Security (%) 100 | 100 100 100 Level 1 . | . . . Level 2 . | . . . Level 3 . | . . . Level 4 . | . . . Level 5 . | . . . High Security . | . . . Max Security . | . . . Squads Dispatched . | . . . Investigation . | . . . Extermination . | . . . Reinforcement . | . . . Assault . | . . . Garrison . | . . . Intercept . | . . . Construction Impeded . | . . . Haulers Reinforced . | . . . Stealth | -11 -10 -10 --------- Run | Scr Mat Min Distress Signals 3 | . 3 . Communications Jammed . | . . . Distress Signals . | . . . Times Spotted 21 | 1 11 9 Peak Tracking Total 5 | 1 5 5 Tactical Retreats 5 | . 2 3 Traps | -11 -10 -10 ------- Run | Scr Mat Min Traps Triggered 1 | . 1 . Indirectly . | . . . Trap Hack Attempts . | . . . Triggered . | . . . Disarmed . | . . . Reprogrammed . | . . . Reused . | . . . Traps Extracted . | . . . Installed . | . . . Triggered . | . . . Machines | -11 -10 -10 ---------- Run | Scr Mat Min Machines Disabled . | . . . Max in Single Turn . | . . . Machines Sabotaged . | . . . Garrisons Compromised . | . . . Overloaded Fab Kills . | . . . Fab Network Shutdowns . | . . . Hacking | -11 -10 -10 --------- Run | Scr Mat Min Machines Accessed 1 | . 1 . Terminals . | . . . Fabricators . | . . . Repair Stations . | . . . Recycling Units 1 | . 1 . Scanalyzers . | . . . Garrison Access . | . . . Total Hacks 1 | . 1 . Successful 1 | . 1 . Failed . | . . . Catastrophic . | . . . Database Lockouts . | . . . Manual 1 | . 1 . Terminals . | . . . Fabricators . | . . . Repair Stations . | . . . Recycling Units 1 | . 1 . Scanalyzers . | . . . Garrison Access . | . . . Terminal Hacks . | . . . Fabricator Hacks . | . . . Repair Station Hacks . | . . . Recycling Unit Hacks 1 | . 1 . Report Inventory 1 | . 1 . Scanalyzer . | . . . Garrison Access Hacks . | . . . Unauthorized Hacks . | . . . Terminals . | . . . Fabricators . | . . . Repair Stations . | . . . Recycling Units . | . . . Scanalyzers . | . . . Garrison Access . | . . . Data Cores Recovered . | . . . Used . | . . . Hacking Detections . | . . . Full Trace Events . | . . . Feedback Events . | . . . Feedback Blocked . | . . . Robot Schematics Acquired . | . . . Robots Built . | . . . Matter . | . . . Time . | . . . Total Robot Build Rating . | . . . Part Schematics Acquired . | . . . Parts Built . | . . . Matter . | . . . Time . | . . . Total Part Build Rating . | . . . Parts Repaired . | . . . Time . | . . . Parts Recycled . | . . . Recycled Matter . | . . . Retrieved Matter . | . . . Retrieved Components . | . . . Parts Scanalyzed . | . . . Part Schematics Acquired . | . . . Parts Damaged . | . . . Bothacking | -11 -10 -10 ------------ Run | Scr Mat Min Used RIF Installer . | . . . Robots Hacked . | . . . Non-combat . | . . . Combat . | . . . Robot Hacks Applied . | . . . Relay Couplers Released . | . . . Robots Rewired . | . . . Allies Hacked . | . . . Hacks Repelled . | . . . Allies | -11 -10 -10 -------- Run | Scr Mat Min Total Allies . | . . . Largest Group . | . . . Highest-Rated Group . | . . . Highest-Rated Ally . | . . . Total Orders . | . . . Ally Attacks . | . . . Total Damage . | . . . Kills . | . . . Allies Corrupted . | . . . Allies Melted . | . . . Intel | -11 -10 -10 ------- Run | Scr Mat Min Robot Analysis Total . | . . . Derelict Logs Recovered 2 | . . 2 Drone Launches . | . . . Drone Recoveries . | . . . Exploration | -11 -10 -10 ------------- Run | Scr Mat Min Turns Passed 466 | 113 211 142 Spaces Moved 554 | 80 114 360 Core 20 | 15 1 4 Treads . | . . . Legs 139 | 65 74 . Wheels . | . . . Hover . | . . . Flight 395 | . 39 356 Fastest Speed 37 | 50 37 37 Average Speed 58 | 106 92 37 Slowest Speed 120 | 120 120 50 Overloaded Moves . | . . . Propulsion Burnouts . | . . . Robots Hopped . | . . . Cave-ins Triggered . | . . . Exploration Rate (%) 36 | 9 25 75 Regions Visited 2 Branch Regions 1 Pre-discovered Areas 1 | . . 1 Known Exits Taken . | . . . Unknown Exits Taken 2 | 1 1 . Scrap Searched 2 | . . 2 Spaces Dug . | . . . Terrain Destroyed 2 | . 2 . Melee . | . . . Projectile 2 | . 2 . AOE . | . . . Terrain Rammed . | . . . Walls Destroyed . | . . . Machines Disabled . | . . . Actions | -11 -10 -10 --------- Run | Scr Mat Min Total 637 | 95 173 369 Wait 22 | . 17 5 Move 552 | 79 113 360 Hop . | . . . Pick Up 8 | 5 1 2 Fast Attach 12 | 5 7 . Attach 6 | 1 4 1 Detach 1 | . 1 . Swap . | . . . Drop 9 | . 8 1 Fire 27 | 5 22 . Melee . | . . . Ram . | . . . Kick . | . . . Crush . | . . . Escape Stasis . | . . . Rewire . | . . . Trap . | . . . Miscellaneous . | . . . Route ------- -11/Scrapyard -10/Materials (discovered 2 exits: [*Mat] / [*Min]) -10/Mines History --------- Turn | Location | Event 2 | -11/Scrapyard | Met Revision 17 68 | -11/Scrapyard | Discovered new exit (range 8) 114 | -11/Scrapyard | Entered Materials 320 | -10/Materials | Discovered new exit (range 13) 320 | -10/Materials | Discovered new exit (range 10) 325 | -10/Materials | Entered Mines 332 | -10/Mines | Core integrity fell below 50% 336 | -10/Mines | Learned Materials terminal intel 343 | -10/Mines | Learned location of Zion (-7) 362 | -10/Mines | Assembled infested the area 367 | -10/Mines | Assisted by a Guerilla fighting off Assembled 467 | -10/Mines | Destroyed by D-53 Grenadier with Mini Grenade Launcher Last Messages --------------- Found Hcp. Matter Pod. Found 30 Matter. Acquired 30 matter. K-01 Serf collects debris. Searching scrap... Found Welding Torch. Found Hover Unit. Found Sml. Laser. Found 44 Matter. Acquired 25 matter. Acquired Hover Unit. Acquired Welding Torch. Dropped Welding Torch. U-05 Engineer builds a Wall. Ion Engine destroyed. U-05 Engineer builds a Wall. Lgt. Ion Engine destroyed. Flight Unit destroyed. Heat Sink destroyed. [Achievement: First Step to Greatness] Map ----- +----------------------------------------------------+ | ???????## #?????????????# | | ???????## #?????????????# ###### #?? | | ???????# ##?????????????# #????## ##?? | | ???????# #??????????????# #????## """ #??? | | ???????# ##???????####### #???## """ #??? | | ??????## ######### ## ##### """ #??? | | ???#### ##?? | | ??## ##### ##? | | ??# ###### #???## ## | | ??# ###????# ### ##????# # | | ??# ###########??????# ####?????# | | ??# ##????????????????# #???????## | | ??## #?????????????????### #???????# | | ???### ##?####?????????????# #???????# | | ?????#### ## #?????????????# #???????## | | ????????## #?###?????????# #????????##### | | ?????????# ##### ######???# #????????????## | | ?????????## % #### # #???# #?????????????? | | ??????######% #?# #?### #?????????????? | | ?????# ### ## ?# #?????????????? | | ?????# ##### u ### #?????????????? | | ???????????# dd % ###???????????? | | ???????????##"## # ############# | | ?????????????#??# [ | | ????????????????????# | | ???????????????????????# @ ############# | | ???????????????????????# #???????????? | | ???????????????????????## ##??????????? | | ????????????????????????##### #??????????? | | ????????????????????????????# #??????????? | | ????????????????????????????### #??????????? | | ??????????????????????????????# ## ##??????????? | | ???????????????????????????????##?####???????????? | | ?????????????????????????????????????????????????? | | | | | | | | | | | | | | | | | | | | | | | | | | | | | | | | | +----------------------------------------------------+ Best States ------------- Heat Dissipation 35 Energy Generation 10 Energy Capacity 250 Matter Stores 300 Matter Capacity 300 Sight Range 16 Terrain Scan Density 10 Evasion (%) 62 Item Schematics ----------------- None Robot Schematics ------------------ None Fabricated ------------ Nothing Alien Tech Used ----------------- None Achievements -------------- First Step to Greatness Challenges ------------ None Game ------ Seed MobileCryofiberFacilitator Manual? 0 Play Time 00:15:05 Cumulative 0.4 hours Start 2021.04.11 @ 20:33:04 End 2021.04.11 @ 20:49:55 Sessions 1 Manual Loads 0 Difficulty Rogue Special Mode None Game No. 1 Rogue 1 Adventurer 0 Explorer 0 Win Type - Total 0 Types 0/0/0/0/0/0/0/0/0 Lore% 0 Gallery% 1 Achievement% 0 Wizard Run 0 Options --------- ASCII 0 Keyboard 1 Movement Vi Keybinds 0 Fullscreen 1 Font 16/Terminus Map View 75x55 Tactical HUD 0 Map Filters NONE Filters NONE Steam 0 RUN: c23bb04a-ce6b-4817-8d6b-963cccaef458